bitfinex/quotes_SOLUSD_20250410
["timestamp","ask_amount","ask_price","bid_price","bid_amount"]
[1744306062783,52.20951579,109.3,109.25,0.063]
[1744306062784,61.36141579,109.27,109.25,0.063]
[1744306062982,52.20951579,109.26,109.25,0.063]
[1744306063384,52.20951579,109.29,109.25,52.27251579]
[1744306063683,52.20951579,109.3,109.26,52.20951579]
[1744306063888,52.20951579,109.3,109.25,52.27251579]
[1744306064381,52.20951579,109.29,109.25,0.063]
[1744306064683,52.20951579,109.29,109.25,52.27251579]
[1744306064989,61.35861579,109.3,109.25,52.41467736]
[1744306065461,52.20951579,109.29,109.25,0.063]
[1744306065655,52.20951579,109.28,109.25,0.063]
[1744306066468,61.35951579,109.29,109.25,0.063]
[1744306066663,52.20951579,109.28,109.25,0.063]
[1744306067264,9.15,109.29,109.25,0.063]
[1744306067573,84.23141579,109.3,109.25,0.063]
[1744306067877,52.20951579,109.28,109.25,0.063]
[1744306068078,9.1491,109.3,109.25,52.27251579]
[1744306068269,52.20951579,109.29,109.25,52.27251579]
[1744306068473,9.1469,109.33,109.28,52.20951579]
[1744306068777,9.1469,109.33,109.29,52.20951579]
[1744306069086,61.35641579,109.33,109.28,52.20951579]
[1744306069279,52.20951579,109.32,109.27,9.1516]
[1744306069584,43.97544201,109.33,109.28,34.82854201]
[1744306069782,1.6183,109.35,109.3,34.82854201]
[1744306069988,34.82854201,109.34,109.3,34.82854201]
[1744306070284,43.97214201,109.37,109.32,34.82854201]
[1744306070656,43.97214201,109.37,109.32,43.97574201]
[1744306070879,34.82854201,109.36,109.32,43.97574201]
[1744306071154,34.82854201,109.37,109.33,34.97070358]
[1744306071361,43.97064201,109.39,109.35,34.82854201]
[1744306071586,9.1412,109.4,109.36,34.82854201]
[1744306071778,61.30927319,109.4,109.36,52.16807319]
[1744306072093,52.16807319,109.39,109.35,52.16807319]
[1744306072460,61.30927319,109.4,109.35,52.16807319]
[1744306072657,61.30927319,109.4,109.36,52.16807319]
[1744306073482,9.1403,109.41,109.36,61.31207319]
[1744306073864,52.16807319,109.4,109.36,61.31207319]
[1744306074075,61.30837319,109.41,109.37,52.16807319]
[1744306074384,9.1394,109.42,109.38,52.16807319]
[1744306074581,61.30747319,109.42,109.38,52.16807319]
[1744306074763,61.30747319,109.42,109.37,61.45303476]
[1744306074963,9.1394,109.42,109.38,52.16807319]
[1744306075163,61.30747319,109.42,109.38,52.16807319]
[1744306076882,9.1394,109.42,109.38,52.16807319]
[1744306077074,61.30747319,109.42,109.38,52.16807319]
[1744306077696,52.16807319,109.41,109.35,99.20745671]
[1744306077986,78.16807319,109.39,109.35,52.16807319]
[1744306078196,78.16807319,109.39,109.34,52.31023476]
[1744306078370,78.16807319,109.39,109.35,52.16807319]
[1744306078568,78.16807319,109.39,109.34,0.14216157]
[1744306078764,26.0,109.39,109.35,52.16807319]
[1744306078965,35.1416,109.39,109.35,52.16807319]
[1744306079172,87.30967319,109.39,109.35,52.16807319]
[1744306079390,52.16807319,109.38,109.34,61.45573476]
[1744306079871,87.30967319,109.39,109.34,61.45573476]
[1744306080066,52.16807319,109.41,109.36,52.31023476]
[1744306080272,1.628,109.44,109.39,52.16807319]
[1744306080484,52.16807319,109.43,109.38,0.14216157]
[1744306080687,0.03,109.44,109.4,52.31023476]
[1744306080898,0.03,109.44,109.41,52.16807319]
[1744306081083,61.33557319,109.44,109.4,52.31023476]
[1744306081273,52.16807319,109.42,109.38,132.4415579]
[1744306081481,52.16807319,109.42,109.38,80.27348471]
[1744306081676,52.16807319,109.41,109.37,6.51236157]
[1744306081895,45.611,109.44,109.37,52.31023476]
[1744306082095,52.16807319,109.42,109.37,52.31023476]
[1744306082301,26.0,109.41,109.36,18.79181043]
[1744306082596,52.16807319,109.43,109.39,52.16807319]
[1744306082767,9.1675,109.44,109.38,52.16807319]
[1744306082975,52.16807319,109.42,109.38,0.14216157]
[1744306083168,61.33557319,109.44,109.4,52.16807319]
[1744306083384,61.33557319,109.44,109.39,52.16807319]
[1744306083597,52.16807319,109.43,109.39,52.16807319]
[1744306083793,52.16807319,109.41,109.37,0.14216157]
[1744306083999,78.16807319,109.4,109.36,132.4415579]
[1744306084291,52.16807319,109.38,109.34,58.77467319]
[1744306084880,52.16807319,109.38,109.34,67.92027319]
[1744306085182,78.16807319,109.39,109.34,58.77467319]
[1744306085381,52.16807319,109.38,109.34,58.77467319]
[1744306085582,52.16807319,109.38,109.34,67.92027319]
[1744306085999,52.16807319,109.37,109.33,52.31023476]
[1744306086385,26.0,109.39,109.33,52.31023476]
[1744306086386,52.16807319,109.38,109.33,52.31023476]
[1744306086677,52.16807319,109.36,109.32,9.147]
[1744306086885,52.16807319,109.36,109.32,61.31507319]
[1744306087379,52.16807319,109.35,109.31,0.14216157]
[1744306087585,52.16807319,109.33,109.3,0.14216157]
[1744306088097,9.1458,109.34,109.3,61.45933476]
[1744306088293,52.16807319,109.34,109.3,9.29126157]
[1744306088472,26.0,109.37,109.33,52.16807319]
[1744306088677,9.1416,109.39,109.34,52.16807319]
[1744306088992,52.16807319,109.39,109.35,52.16807319]
[1744306089193,52.16807319,109.4,109.36,52.16807319]
[1744306089604,9.1407,109.4,109.35,52.16807319]
[1744306089780,52.16807319,109.38,109.34,52.16807319]
[1744306089982,52.16807319,109.38,109.34,61.31377319]
[1744306090503,61.31057319,109.38,109.34,9.1457]
[1744306090903,61.31057319,109.38,109.34,61.31377319]
[1744306091389,52.16807319,109.38,109.34,61.31377319]
[1744306091780,61.31067319,109.38,109.34,9.1457]
[1744306091984,26.0,109.38,109.35,52.16807319]
[1744306092286,52.16807319,109.42,109.37,52.16807319]
[1744306092487,67.53807319,109.43,109.39,52.16807319]
[1744306092689,67.53807319,109.43,109.38,52.16807319]
[1744306092891,9.1386,109.43,109.39,52.16807319]
[1744306093094,61.30667319,109.43,109.39,52.16807319]
[1744306093277,9.1386,109.43,109.39,52.16807319]
[1744306093477,9.1386,109.43,109.39,61.30957319]
[1744306093674,34.76044883,109.43,109.39,9.1415]
[1744306093879,0.03,109.44,109.41,34.76044883]
[1744306094376,26.0,109.43,109.41,34.76044883]
[1744306097514,0.03,109.44,109.41,43.90004883]
[1744306098092,0.03,109.44,109.41,34.76044883]
[1744306098518,0.03,109.44,109.41,43.90034883]
[1744306098812,0.03,109.44,109.41,34.76044883]
[1744306099110,0.03,109.44,109.4,50.05554883]
[1744306099611,0.03,109.44,109.4,43.90074883]
[1744306100116,0.03,109.44,109.4,34.76044883]
[1744306100305,0.03,109.44,109.41,34.76044883]
[1744306101193,0.03,109.44,109.4,43.90104883]
[1744306101530,0.03,109.44,109.43,34.76044883]
[1744306101901,0.03,109.44,109.42,43.89884883]
[1744306102305,0.03,109.44,109.43,34.76044883]
[1744306102699,0.03,109.44,109.42,9.1384]
[1744306102908,0.03,109.44,109.43,34.76044883]
[1744306103397,0.03,109.44,109.43,34.9026104]
[1744306103912,0.03,109.44,109.43,44.0408104]
[1744306104606,0.03,109.44,109.43,34.76044883]
[1744306104803,0.03,109.44,109.43,34.9026104]
[1744306105310,0.03,109.44,109.43,53.8365824]
[1744306105499,0.03,109.44,109.43,19.07613357]
[1744306105698,0.03,109.44,109.43,53.8365824]
[1744306105909,0.03,109.44,109.43,143.24826711]
[1744306106331,0.03,109.44,109.43,184.47181594]
[1744306106506,0.03,109.44,109.43,149.71136711]
[1744306107210,0.03,109.45,109.44,19.07613357]
[1744306107408,0.03,109.45,109.44,88.59703123]
[1744306107813,0.03,109.45,109.44,62.9739824]
[1744306108208,0.03,109.45,109.44,97.73443123]
[1744306108813,0.0001,109.45,109.44,97.73443123]
[1744306109008,0.0001,109.45,109.44,62.9739824]
[1744306110330,0.0001,109.45,109.44,34.76044883]
[1744306110625,0.0001,109.45,109.43,89.41128471]
[1744306110829,0.0001,109.45,109.43,43.89824883]
[1744306111127,0.0001,109.45,109.44,34.76044883]
[1744306111324,0.0001,109.45,109.42,0.14216157]
[1744306111551,34.76044883,109.44,109.41,80.27348471]
[1744306111703,0.0001,109.45,109.42,34.76044883]
[1744306111902,0.0001,109.45,109.41,9.1398]
[1744306112098,0.0001,109.45,109.42,34.76044883]
[1744306112632,9.1368,109.45,109.41,43.90024883]
[1744306112846,34.76044883,109.44,109.4,43.90074883]
[1744306113138,9.1368,109.45,109.41,34.76044883]
[1744306113338,0.0001,109.45,109.43,34.76044883]
[1744306113832,0.0001,109.45,109.42,34.76044883]
[1744306114031,0.0001,109.45,109.42,43.89924883]
[1744306114537,0.0001,109.45,109.42,34.76044883]
[1744306114917,34.76054883,109.45,109.41,34.76044883]
[1744306115131,34.76054883,109.45,109.4,43.90084883]
[1744306115543,34.76044883,109.44,109.39,43.90164883]
[1744306115735,34.76044883,109.42,109.38,9.1424]
[1744306116040,34.76044883,109.42,109.36,41.65091043]
[1744306116041,43.89974883,109.42,109.36,9.28626157]
[1744306116218,43.89974883,109.42,109.37,34.76044883]
[1744306117143,57.60354883,109.45,109.38,34.76044883]
[1744306117350,34.76044883,109.43,109.38,34.76044883]
[1744306117528,60.76044883,109.42,109.37,34.76044883]
[1744306117730,34.76044883,109.41,109.36,43.90454883]
[1744306117932,34.76044883,109.41,109.37,34.76044883]
[1744306118132,62.36044883,109.42,109.38,43.90284883]
[1744306118523,60.76044883,109.42,109.38,9.1424]
[1744306118745,60.76044883,109.42,109.38,43.90284883]
[1744306119062,26.0,109.42,109.39,34.76044883]
[1744306119538,34.76044883,109.43,109.39,34.76044883]
[1744306120139,34.76044883,109.43,109.39,43.90164883]
[1744306120329,34.76044883,109.43,109.39,9.1412]
[1744306120529,34.76044883,109.43,109.39,43.90164883]
[1744306120746,45.49824883,109.44,109.39,43.90164883]
[1744306121831,34.76044883,109.42,109.38,43.90254883]
[1744306122039,34.76044883,109.42,109.37,0.28432314]
[1744306122040,34.76044883,109.41,109.37,44.0454104]
[1744306123140,43.90024883,109.42,109.38,34.76044883]
[1744306123443,10.7378,109.44,109.4,34.76044883]
[1744306123624,45.49824883,109.44,109.4,34.76044883]
[1744306124065,34.76044883,109.42,109.37,80.27348471]
[1744306124241,34.76044883,109.42,109.38,43.90224883]
[1744306124544,43.89924883,109.43,109.38,43.90224883]
[1744306124849,45.49824883,109.44,109.39,34.76044883]
[1744306125146,34.76044883,109.43,109.39,34.76044883]
[1744306125945,43.89934883,109.43,109.38,44.0444104]
[1744306126251,43.89934883,109.43,109.39,34.76044883]
[1744306126552,1.6,109.44,109.39,34.76044883]
[1744306126553,45.49824883,109.44,109.39,34.76044883]
[1744306126757,10.7378,109.44,109.39,0.14216157]
[1744306126943,43.89754883,109.45,109.41,34.76044883]
[1744306127140,9.1371,109.45,109.41,34.76044883]
[1744306127325,43.89754883,109.45,109.41,34.76044883]
[1744306127649,9.1371,109.45,109.41,34.76044883]
[1744306128148,43.89754883,109.45,109.41,43.90024883]
[1744306128552,0.0001,109.45,109.41,43.90024883]
[1744306129143,0.0001,109.45,109.42,34.76044883]
[1744306130447,0.0001,109.45,109.42,43.89924883]
[1744306131854,0.0001,109.45,109.41,43.90034883]
[1744306132154,34.76044883,109.44,109.4,124.17423354]
[1744306132349,34.76044883,109.44,109.4,115.03393354]
[1744306132552,0.0001,109.45,109.4,80.27348471]
[1744306132553,34.76044883,109.42,109.4,80.27348471]
[1744306132737,34.76044883,109.42,109.38,43.90244883]
[1744306133045,34.76044883,109.44,109.4,34.76044883]
[1744306133257,26.0,109.43,109.39,34.76044883]
[1744306133556,69.89904883,109.43,109.39,43.90194883]
[1744306133743,69.89904883,109.43,109.38,34.76044883]
[1744306133943,34.76044883,109.42,109.37,34.76044883]
[1744306134457,92.74464883,109.43,109.38,34.76044883]
[1744306134650,34.76044883,109.42,109.38,34.76044883]
[1744306135342,43.90004883,109.42,109.38,34.76044883]
[1744306136658,9.1396,109.42,109.38,43.90274883]
[1744306136834,43.89904883,109.43,109.39,34.76044883]
[1744306137661,43.89904883,109.43,109.39,43.90174883]
[1744306138257,43.89904883,109.43,109.38,43.90244883]
[1744306138464,60.76044883,109.42,109.38,43.90244883]
[1744306138647,60.76044883,109.42,109.38,9.142]
[1744306138847,60.76044883,109.42,109.37,43.90324883]
[1744306139069,34.76044883,109.41,109.37,43.90324883]
[1744306139665,43.90084883,109.41,109.37,43.90324883]
[1744306140346,34.76044883,109.4,109.36,124.38279511]
[1744306140862,34.76044883,109.4,109.36,0.063]
[1744306141054,34.76044883,109.37,109.36,0.063]
[1744306141851,43.90364883,109.37,109.36,0.063]
[1744306143366,44.18797197,109.37,109.36,0.063]
[1744306143665,26.0,109.34,109.32,0.063]
[1744306143865,34.76044883,109.33,109.32,0.063]
[1744306144240,26.0,109.34,109.32,0.063]
[1744306144436,60.76044883,109.34,109.32,0.063]
[1744306145071,34.76044883,109.33,109.32,0.063]
[1744306145367,26.0,109.34,109.32,0.063]
[1744306145565,26.0,109.33,109.32,0.063]
[1744306145743,9.1453,109.35,109.32,0.063]
[1744306145944,34.76044883,109.34,109.32,0.063]
[1744306146464,43.90574883,109.35,109.32,0.063]
[1744306146843,34.76044883,109.36,109.32,34.82344883]
[1744306147062,13.56,109.38,109.35,34.76044883]
[1744306147363,43.90174883,109.4,109.36,34.76044883]
[1744306148164,60.76044883,109.37,109.32,89.48368471]
[1744306148462,34.76044883,109.36,109.32,34.82344883]
[1744306148663,34.76044883,109.36,109.32,0.063]
[1744306148888,34.76044883,109.35,109.32,0.063]
[1744306149247,9.1457,109.34,109.32,0.063]
[1744306149453,6.0421,109.36,109.32,0.063]
[1744306149667,40.80254883,109.36,109.32,0.063]
[1744306149866,34.76044883,109.35,109.32,0.063]
[1744306151173,40.80254883,109.36,109.32,0.063]
[1744306151550,43.90534883,109.35,109.32,0.063]
[1744306152272,34.76044883,109.35,109.32,0.063]
[1744306152646,43.90494883,109.36,109.32,34.82344883]
[1744306152846,9.1445,109.36,109.32,34.82344883]
[1744306153042,43.90494883,109.36,109.32,34.82344883]
[1744306153582,9.1445,109.36,109.32,34.82344883]
[1744306153878,43.90114883,109.4,109.35,34.76044883]
[1744306154586,43.90114883,109.4,109.36,34.76044883]
[1744306154762,9.1407,109.4,109.36,34.76044883]
[1744306155161,9.1407,109.4,109.37,34.76044883]
[1744306155362,22.6803,109.41,109.37,43.90364883]
[1744306155562,57.44074883,109.41,109.37,43.90364883]
[1744306155861,9.1399,109.41,109.37,9.1432]
[1744306156058,9.1399,109.41,109.38,34.76044883]
[1744306156450,43.90034883,109.41,109.37,34.76044883]
[1744306156651,9.1399,109.41,109.37,34.76044883]
[1744306156863,9.1399,109.41,109.38,34.76044883]
[1744306157077,26.0,109.4,109.38,34.76044883]
[1744306157574,26.0,109.4,109.37,9.1426]
[1744306157877,26.0,109.4,109.38,34.76044883]
[1744306161474,69.90124883,109.4,109.36,34.76044883]
[1744306161887,69.90124883,109.4,109.35,44.0469104]
[1744306162257,69.90124883,109.4,109.36,34.76044883]
[1744306162983,69.90124883,109.4,109.36,43.90444883]
[1744306163365,26.0,109.4,109.37,34.76044883]
[1744306163563,35.1409,109.4,109.36,43.90444883]
[1744306163792,9.1409,109.4,109.36,43.90444883]
[1744306164100,9.1409,109.4,109.36,9.144]
[1744306164287,34.76044883,109.39,109.35,34.76044883]
[1744306164584,34.76044883,109.39,109.34,80.27348471]
[1744306164585,9.1424,109.38,109.34,124.17923354]
[1744306164784,43.90284883,109.38,109.34,80.27348471]
[1744306165674,43.90284883,109.38,109.34,124.17963354]
[1744306165854,9.142,109.39,109.35,34.76044883]
[1744306166054,43.90244883,109.39,109.34,124.17963354]
[1744306166458,34.76044883,109.38,109.34,34.76044883]
[1744306166691,31.996,109.39,109.34,34.76044883]
[1744306166982,34.76044883,109.38,109.34,34.76044883]
[1744306167987,43.90244883,109.39,109.34,43.90614883]
[1744306168360,43.90244883,109.39,109.35,34.76044883]
[1744306168560,43.90244883,109.39,109.34,43.90614883]
[1744306168980,34.76044883,109.38,109.33,44.0487104]
[1744306169186,34.76044883,109.37,109.32,43.97034883]
[1744306169369,34.76044883,109.36,109.32,34.82344883]
[1744306169773,34.76044883,109.37,109.32,34.82344883]
[1744306170177,34.76044883,109.37,109.32,0.20516157]
[1744306170494,43.90444883,109.37,109.33,34.76044883]
[1744306171484,26.0,109.35,109.34,34.76044883]
[1744306171790,9.1428,109.38,109.34,34.76044883]
[1744306172094,43.90244883,109.39,109.35,34.76044883]
[1744306172389,22.6812,109.4,109.36,34.76044883]
[1744306172763,57.44164883,109.4,109.36,34.76044883]
[1744306172968,57.44164883,109.4,109.35,34.76044883]
[1744306173787,57.44164883,109.4,109.35,43.90474883]
[1744306173978,43.90164883,109.4,109.35,43.90474883]
[1744306174294,26.0,109.38,109.37,34.76044883]
[1744306174490,9.1403,109.41,109.37,34.76044883]
[1744306174988,9.1403,109.41,109.35,43.90474883]
[1744306174989,9.1382,109.43,109.4,34.76044883]
[1744306175172,1.5101,109.45,109.41,34.76044883]
[1744306175173,45.40754883,109.45,109.41,34.76044883]
[1744306175376,9.1367,109.45,109.42,34.76044883]
[1744306175572,0.0001,109.45,109.42,34.76044883]
[1744306175778,0.0001,109.45,109.42,43.89904883]
[1744306176097,0.0001,109.45,109.42,9.1386]
[1744306176397,0.0001,109.45,109.42,43.89904883]
[1744306178391,0.0001,109.45,109.44,34.9026104]
[1744306178691,0.0001,109.45,109.44,34.76044883]
[1744306180195,0.0001,109.45,109.44,34.9026104]
[1744306180399,0.0001,109.45,109.44,44.0400104]
[1744306181187,0.0001,109.45,109.43,9.1379]
[1744306181372,0.0001,109.45,109.41,9.1399]
[1744306181568,0.0001,109.45,109.43,34.76044883]
[1744306181770,0.0001,109.45,109.42,34.9026104]
[1744306182001,60.76054883,109.45,109.41,34.76044883]
[1744306182174,60.76054883,109.45,109.4,10.7756]
[1744306182373,69.89734883,109.45,109.4,10.7756]
[1744306182799,69.89734883,109.45,109.41,34.76044883]
[1744306183298,35.1369,109.45,109.41,34.76044883]
[1744306183592,69.89734883,109.45,109.41,34.76044883]
[1744306183797,69.89734883,109.45,109.41,43.90014883]
[1744306184114,26.0001,109.45,109.42,34.76044883]
[1744306184795,26.0001,109.45,109.44,34.76044883]
[1744306185376,26.0001,109.45,109.43,34.76044883]
[1744306185695,26.0001,109.45,109.42,9.1383]
[1744306185696,0.0001,109.45,109.44,34.76044883]
[1744306186698,0.0001,109.45,109.44,34.9026104]
[1744306187401,0.0001,109.45,109.44,53.8365824]
[1744306187706,0.0001,109.45,109.44,62.9739824]
[1744306187912,0.0001,109.45,109.44,97.73443123]
[1744306188401,0.0001,109.45,109.44,62.9739824]
[1744306188977,0.0001,109.45,109.44,44.0400104]
[1744306189382,0.0001,109.45,109.44,62.9739824]
[1744306189582,0.0001,109.45,109.44,97.73443123]
[1744306189796,0.03,109.5,109.45,20.58973357]
[1744306190009,0.03,109.5,109.49,34.76044883]
[1744306190379,0.03,109.5,109.49,34.9026104]
[1744306191616,0.03,109.5,109.49,9.27536157]
[1744306191805,0.03,109.5,109.49,34.76044883]
[1744306192109,0.03,109.5,109.48,43.89404883]
[1744306193304,0.03,109.5,109.46,0.14216157]
[1744306193499,0.03,109.5,109.48,34.76044883]
[1744306193698,0.03,109.5,109.46,0.14216157]
[1744306194096,0.03,109.5,109.47,34.76044883]
[1744306194584,34.79044883,109.5,109.46,43.89574883]
[1744306194785,0.03,109.5,109.46,43.89574883]
[1744306195380,34.79044883,109.5,109.46,34.76044883]
[1744306195816,34.76044883,109.47,109.41,103.12248471]
[1744306195982,34.76044883,109.46,109.42,0.14216157]
[1744306196178,34.76044883,109.46,109.42,34.76044883]
[1744306196491,43.89624883,109.46,109.42,43.89904883]
[1744306196807,43.89624883,109.46,109.41,43.89984883]
[1744306196996,34.76044883,109.45,109.41,34.76044883]
[1744306197200,60.76044883,109.45,109.41,34.76044883]
[1744306198207,69.89714883,109.45,109.41,43.90004883]
[1744306199507,15.1147,109.49,109.42,34.76044883]
[1744306199718,43.89444883,109.48,109.43,34.76044883]
[1744306199920,24.2482,109.49,109.44,34.9026104]
[1744306200215,24.2482,109.49,109.44,34.76044883]
[1744306200216,34.76044883,109.48,109.44,34.76044883]
[1744306200418,34.76044883,109.47,109.43,34.76044883]
[1744306200719,34.76044883,109.45,109.41,43.90004883]
[1744306200922,34.76044883,109.43,109.39,9.1412]
[1744306201115,34.76044883,109.4,109.36,0.14216157]
[1744306201289,34.76044883,109.39,109.36,9.28586157]
[1744306201620,34.76044883,109.4,109.36,44.0463104]
[1744306201786,43.90114883,109.4,109.35,43.90484883]
[1744306201987,34.76044883,109.37,109.33,9.1459]
[1744306202186,55.12541846,109.4,109.32,43.97054883]
[1744306202187,34.76044883,109.36,109.32,43.97054883]
[1744306202593,60.76044883,109.36,109.32,43.97054883]
[1744306202797,60.76044883,109.36,109.32,9.2101]
[1744306202798,26.0,109.36,109.32,9.2101]
[1744306203103,34.76044883,109.35,109.32,0.063]
[1744306203306,43.90534883,109.35,109.32,0.063]
[1744306203689,34.76044883,109.34,109.32,0.063]
[1744306204100,26.0,109.33,109.32,0.063]
[1744306204313,34.76044883,109.34,109.32,0.063]
[1744306204518,43.90534883,109.35,109.32,0.063]
[1744306204813,34.76044883,109.34,109.32,0.063]
[1744306205919,32.14964886,109.39,109.32,0.063]
[1744306205920,34.76044883,109.35,109.32,0.063]
[1744306207415,13.5,109.39,109.33,34.76044883]
[1744306207620,34.76044883,109.37,109.33,34.76044883]
[1744306207998,34.76044883,109.36,109.32,34.82344883]
[1744306208394,34.76044883,109.35,109.32,0.063]
[1744306208600,34.76044883,109.33,109.32,0.063]
[1744306208891,44.933972,109.31,109.3,0.063]
[1744306209218,0.14216157,109.3,109.27,0.063]
[1744306209421,26.0,109.31,109.27,0.063]
[1744306209610,6.5782,109.34,109.29,34.76044883]
[1744306209813,34.76044883,109.35,109.31,34.76044883]
[1744306210116,40.88044883,109.37,109.33,34.76044883]
[1744306210320,43.90454883,109.36,109.3,0.14216157]
[1744306210619,34.76044883,109.34,109.3,34.76044883]
[1744306210820,15.2636,109.37,109.33,34.76044883]
[1744306211026,9.1436,109.37,109.33,34.76044883]
[1744306211218,43.90404883,109.37,109.3,115.17609511]
[1744306211520,327.26,109.38,109.35,34.76044883]
[1744306211521,13.5,109.38,109.35,34.76044883]
[1744306212218,17.2995,109.4,109.36,34.76044883]
[1744306212416,6.6634,109.43,109.38,34.76044883]
[1744306212617,26.0,109.4,109.38,34.76044883]
[1744306213301,34.76044883,109.43,109.39,34.76044883]
[1744306213499,34.76044883,109.42,109.37,34.76044883]
[1744306213707,31.9838,109.43,109.35,50.3314104]
[1744306213708,34.76044883,109.4,109.35,9.28636157]
[1744306213914,34.76044883,109.4,109.36,34.76044883]
[1744306214223,9.1399,109.41,109.37,34.76044883]
[1744306214409,9.1393,109.42,109.38,34.76044883]
[1744306214719,9.1393,109.42,109.37,9.1427]
[1744306214902,22.6378,109.44,109.4,34.76044883]
[1744306215222,9.1368,109.45,109.41,34.76044883]
[1744306215402,34.76044883,109.48,109.44,34.76044883]
[1744306215719,0.03,109.5,109.46,34.76044883]
[1744306215906,9.1625,109.5,109.46,34.76044883]
[1744306216296,9.1625,109.5,109.41,9.28206157]
[1744306216297,34.76044883,109.48,109.41,9.28206157]
[1744306216497,34.76044883,109.47,109.43,34.76044883]
[1744306216916,34.76044883,109.48,109.44,34.76044883]
[1744306217125,26.0,109.45,109.43,34.76044883]
[1744306217324,13.46,109.49,109.44,34.76044883]
[1744306217619,43.92294883,109.5,109.45,34.76044883]
[1744306217927,26.0,109.47,109.43,0.14216157]
[1744306218302,9.1343,109.48,109.44,34.76044883]
[1744306218516,9.1336,109.49,109.44,34.76044883]
[1744306218700,0.03,109.5,109.48,34.76044883]
[1744306219428,0.03,109.5,109.49,34.9026104]
[1744306220326,0.03,109.5,109.49,62.68545926]
[1744306220499,0.03,109.55,109.5,18.79181043]
[1744306220703,0.03,109.55,109.54,34.76044883]
[1744306221133,26.03,109.55,109.53,34.76044883]
[1744306221654,35.1583,109.55,109.51,0.14216157]
[1744306221815,26.03,109.55,109.52,34.76044883]
[1744306222011,26.0,109.54,109.52,34.76044883]
[1744306222227,26.0,109.54,109.53,34.76044883]
[1744306223110,0.03,109.55,109.53,34.76044883]
[1744306223299,0.03,109.55,109.54,51.99838984]
[1744306223805,26.03,109.55,109.54,51.99838984]
[1744306224007,26.03,109.55,109.52,0.14216157]
[1744306224212,26.03,109.55,109.52,52.14055141]
[1744306224422,0.03,109.55,109.52,52.14055141]
[1744306224617,0.03,109.55,109.52,51.99838984]
[1744306224926,0.03,109.55,109.53,51.99838984]
[1744306225125,52.02838984,109.55,109.51,0.14216157]
[1744306225322,0.03,109.55,109.52,51.99838984]
[1744306225546,26.0,109.54,109.53,51.99838984]
[1744306226633,0.03,109.55,109.53,51.99838984]
[1744306226922,0.03,109.55,109.54,51.99838984]
[1744306227444,0.03,109.55,109.53,0.14216157]
[1744306227642,0.03,109.55,109.53,52.14055141]
[1744306227844,0.03,109.55,109.52,52.14055141]
[1744306228144,0.03,109.55,109.53,51.99838984]
[1744306228332,0.03,109.55,109.54,51.99838984]
[1744306228722,0.03,109.55,109.53,51.99838984]
[1744306229133,0.03,109.55,109.54,51.99838984]
[1744306229443,0.03,109.55,109.53,51.99838984]
[1744306229746,0.03,109.55,109.54,51.99838984]
[1744306230520,0.03,109.55,109.54,52.14055141]
[1744306232144,0.03,109.55,109.54,51.99838984]
[1744306232449,0.03,109.55,109.52,0.14216157]
[1744306232624,0.03,109.55,109.53,51.99838984]
[1744306232944,0.03,109.55,109.54,52.14055141]
[1744306233848,0.03,109.55,109.54,51.99838984]
[1744306234923,0.03,109.55,109.52,51.99838984]
[1744306235157,0.03,109.55,109.51,51.99838984]
[1744306235319,51.99838984,109.54,109.5,51.99838984]
[1744306235523,0.03,109.55,109.51,51.99838984]
[1744306235745,65.46838984,109.55,109.5,51.99838984]
[1744306235950,13.47,109.55,109.49,51.99838984]
[1744306236131,51.99838984,109.54,109.49,51.99838984]
[1744306236323,51.99838984,109.54,109.46,29.37844886]
[1744306236324,51.99838984,109.52,109.46,1.5933]
[1744306236521,51.99838984,109.52,109.46,0.14216157]
[1744306236522,26.0,109.52,109.46,0.14216157]
[1744306236721,9.1315,109.51,109.48,51.99838984]
[1744306237454,9.1315,109.51,109.43,86.37008471]
[1744306237455,51.99838984,109.5,109.43,86.37008471]
[1744306237656,51.99838984,109.5,109.4,156.83706813]
[1744306237657,51.99838984,109.47,109.4,156.83706813]
[1744306237834,51.99838984,109.45,109.4,80.27348471]
[1744306238035,51.99838984,109.45,109.41,51.99838984]
[1744306238230,51.99838984,109.43,109.38,80.27348471]
[1744306238431,51.99838984,109.43,109.36,80.27348471]
[1744306238634,61.13828984,109.41,109.37,51.99838984]
[1744306239031,61.13828984,109.41,109.36,80.27348471]
[1744306239343,61.13828984,109.41,109.37,0.063]
[1744306239541,51.99838984,109.4,109.37,0.063]